bitfinex-derivatives/quotes_ETHF0:USTF0_20250428
["timestamp","ask_amount","ask_price","bid_price","bid_amount"]
[1745804902451,9.23142308,1764.1,1764.0,1.13331]
[1745804902653,10.36464308,1764.2,1764.0,1.13331]
[1745804902848,10.36464308,1764.2,1764.1,4.2028]
[1745804903352,9.23142308,1764.2,1764.1,5.33604]
[1745804904056,9.23142308,1764.2,1764.1,46.13604]
[1745804904254,9.23142308,1764.2,1764.1,49.34384]
[1745804904553,9.23142308,1764.2,1764.1,54.34384]
[1745804905152,5.25106,1764.6,1764.4,1.13305]
[1745804905346,4.1181,1764.6,1764.5,8.774]
[1745804905657,5.25102,1764.6,1764.5,8.774]
[1745804906153,4.1181,1764.6,1764.5,9.90698]
[1745804906554,5.25102,1764.6,1764.5,8.774]
[1745804907450,4.1181,1764.6,1764.5,8.774]
[1745804907852,3.2078,1764.8,1764.5,8.774]
[1745804908059,14.28835,1764.9,1764.7,1.13285]
[1745804908555,14.28835,1764.9,1764.8,4.0671]
[1745804908755,4.3594,1764.9,1764.8,4.0671]
[1745804908951,4.3594,1764.9,1764.8,5.19989]
[1745804909156,5.49213,1764.9,1764.8,4.0671]
[1745804910256,5.49213,1764.9,1764.8,40.8]
[1745804910855,8.69993,1764.9,1764.8,40.8]
[1745804912855,1.13266,1765.1,1764.8,41.93279]
[1745804913159,3.2078,1765.0,1764.9,9.95253]
[1745804913351,8.68466,1765.1,1764.9,9.95253]
[1745804913758,1.13266,1765.0,1764.9,8.8198]
[1745804913957,5.47686,1765.0,1764.9,8.8198]
[1745804914557,5.47686,1765.0,1764.9,9.95253]
[1745804914751,4.34044,1765.1,1764.9,9.95253]
[1745804915557,1.13266,1765.0,1764.9,4.641]
[1745804915859,5.25116,1765.0,1764.9,4.641]
[1745804916057,1.13273,1764.9,1764.8,40.8]
[1745804916252,5.25123,1764.9,1764.8,40.8]
[1745804916458,8.45903,1764.9,1764.8,40.8]
[1745804916848,3.58805879,1765.6,1764.8,49.0078]
[1745804917047,13.40243,1765.9,1765.6,1.13225]
[1745804917252,12.2703,1765.9,1765.7,4.64]
[1745804917464,13.40241,1765.9,1765.8,40.8]
[1745804917757,13.40241,1765.9,1765.5,8.5572]
[1745804917758,1.13238,1765.5,1765.2,7.8478]
[1745804917957,4.1185,1765.4,1765.2,8.98029]
[1745804918261,1.13237,1765.5,1765.3,5.25037]
[1745804918457,1.13237,1765.5,1765.3,4.1179]
[1745804918760,5.57201,1765.4,1765.3,4.1179]
[1745804919054,4.4396,1765.4,1765.3,4.1179]
[1745804919256,4.4396,1765.4,1765.3,46.05037]
[1745804919455,20.59102308,1765.9,1765.3,46.05037]
[1745804919456,1.13231,1765.6,1765.3,46.05033]
[1745804919654,1.13231,1765.6,1765.4,4.122]
[1745804919851,4.4396,1765.5,1765.3,40.8]
[1745804920051,1.13241,1765.4,1765.3,40.8]
[1745804921855,6.13241,1765.4,1765.3,40.8]
[1745804922056,13.05471,1765.4,1765.3,40.8]
[1745804922257,9.84691,1765.4,1765.3,40.8]
[1745804924468,4.4396,1765.5,1765.3,40.8]
[1745804924673,5.57199,1765.5,1765.3,45.439]
[1745804924971,5.57199,1765.5,1765.3,46.57147]
[1745804925163,5.57199,1765.5,1765.4,4.2326]
[1745804925670,4.4396,1765.5,1765.3,46.57144]
[1745804925862,1.13241,1765.4,1765.3,49.6716]
[1745804926059,5.57198,1765.5,1765.3,50.80407]
[1745804926465,5.57198,1765.5,1765.4,4.2326]
[1745804928460,8.5273,1765.7,1765.4,4.2326]
[1745804928669,4.4312,1765.7,1765.6,1.13228]
[1745804928867,4.4312,1765.7,1765.5,1.1323]
[1745804929171,5.56341,1765.7,1765.6,4.4707]
[1745804929373,1.13228,1765.6,1765.5,0.2832]
[1745804929575,5.56348,1765.6,1765.5,0.2832]
[1745804930073,5.56348,1765.6,1765.5,4.7539]
[1745804930773,5.56348,1765.6,1765.5,0.2832]
[1745804932073,5.56348,1765.6,1765.5,4.3682]
[1745804932574,5.56348,1765.6,1765.5,0.2832]
[1745804932875,10.56348,1765.6,1765.5,0.2832]
[1745804933076,13.77128,1765.6,1765.5,0.2832]
[1745804934271,8.77128,1765.6,1765.5,0.2832]
[1745804934775,13.77128,1765.6,1765.5,0.2832]
[1745804935970,13.77128,1765.6,1765.5,1e-05]
[1745804936178,13.86557803,1765.6,1765.5,1e-05]
[1745804936382,1.13266,1765.0,1764.9,4.63]
[1745804936678,1.13266,1765.0,1764.9,45.43]
[1745804939487,1.13266,1765.0,1764.9,49.7203]
[1745804942477,1.13266,1765.0,1764.9,4.63]
[1745804942677,1.13279,1764.8,1764.7,0.2833]
[1745804942879,1.13286,1764.7,1764.6,4.4221]
[1745804943186,5.30696,1764.7,1764.6,45.2221]
[1745804944580,5.30696,1764.7,1764.6,40.8]
[1745804944771,1.13298,1764.5,1764.4,0.2833]
[1745804945174,3.2078,1764.6,1764.2,9.82625]
[1745804945381,1.13305,1764.4,1764.2,9.82625]
[1745804945577,1.133,1764.5,1764.3,5.3691]
[1745804945784,1.133,1764.5,1764.4,44.8631]
[1745804946081,1.133,1764.5,1764.4,49.091]
[1745804946278,1.13289,1764.7,1764.4,52.2988]
[1745804946478,1.13289,1764.7,1764.5,1.13295]
[1745804946678,1.13289,1764.7,1764.6,4.3415]
[1745804947386,3.2078,1764.8,1764.7,1.13286]
[1745804947585,3.2078,1764.8,1764.6,10.10538]
[1745804947779,4.3406,1764.8,1764.7,4.3415]
[1745804950785,1.1328,1764.8,1764.7,4.3415]
[1745804951786,6.03965,1764.9,1764.4,48.2357]
[1745804951987,4.0706,1764.7,1764.4,52.6808]
[1745804952184,1.13298,1764.5,1764.4,49.473]
[1745804954585,1.13298,1764.5,1764.4,40.8]
[1745804955291,5.33028,1764.5,1764.4,40.8]
[1745804956579,13.53808,1764.5,1764.4,40.8]
[1745804956781,8.53808,1764.5,1764.4,40.8]
[1745804958886,13.53808,1764.5,1764.4,40.8]
[1745804959093,1.13311,1764.3,1764.2,0.2834]
[1745804959484,8.2078,1764.3,1764.0,4.631]
[1745804959683,4.34104,1764.1,1764.0,4.631]
[1745804959885,1.13343,1763.8,1763.7,4.623]
[1745804960091,1.13343,1763.8,1763.7,40.8]
[1745804960477,14.66403,1763.8,1763.7,40.8]
[1745804962287,9.66403,1763.8,1763.7,40.8]
[1745804963194,1.13343,1763.8,1763.7,40.8]
[1745804963888,5.59983,1763.8,1763.7,40.8]
[1745804964284,9.69763,1763.8,1763.7,40.8]
[1745804969595,5.59983,1763.8,1763.7,40.8]
[1745804969794,1.13343,1763.8,1763.7,40.8]
[1745804969993,1.13343,1763.8,1763.7,45.8]
[1745804970705,1.13343,1763.8,1763.7,54.161]
[1745804971299,1.13343,1763.8,1763.7,58.402]
[1745804972901,1.13343,1763.8,1763.7,53.402]
[1745804973402,5.37973,1763.8,1763.7,53.402]
[1745804974209,5.37973,1763.8,1763.7,40.8]
[1745804975811,1.13343,1763.8,1763.7,40.8]
[1745804976911,1.13342,1763.9,1763.7,45.8]
[1745804977115,1.13342,1763.9,1763.8,8.3404]
[1745804977323,1.13334,1764.0,1763.8,16.1732]
[1745804977616,1.13334,1764.0,1763.9,8.4879]
[1745804979419,3.2078,1764.3,1763.9,8.4879]
[1745804979617,1.13318,1764.2,1764.0,1.13328]
[1745804979814,1.13318,1764.2,1764.1,4.2551]
[1745804982622,1.13331,1764.0,1763.9,0.2834]
[1745804983216,5.42801,1764.0,1763.9,0.2834]
[1745804984309,9.92091,1764.0,1763.9,0.2834]
[1745804985323,1.13343,1763.8,1763.7,40.8]
[1745804985519,4.34123,1763.8,1763.7,40.8]
[1745804985921,8.51113,1763.8,1763.7,40.8]
[1745804988725,13.51113,1763.8,1763.7,40.8]
[1745804989734,8.51113,1763.8,1763.7,40.8]
[1745804990123,12.3777,1763.8,1763.2,4.625]
[1745804990322,1.13376,1763.3,1763.2,4.625]
[1745804990628,1.13376,1763.3,1763.2,49.597]
[1745804990828,5.56306,1763.3,1763.2,49.597]
[1745804992827,1.13376,1763.3,1763.2,49.597]
[1745804994334,1.13376,1763.3,1763.2,40.8]
[1745804995032,1.13376,1763.3,1763.2,45.0735]
[1745804995635,9.23142308,1763.7,1763.2,53.2813]
[1745804995837,1.13356,1763.6,1763.3,10.09724]
[1745804996032,10.36495308,1763.7,1763.4,4.3485]
[1745804996328,9.23142308,1763.7,1763.5,4.3381]
[1745804996533,9.23142308,1763.7,1763.6,8.68986]
[1745804996728,9.23142308,1763.7,1763.6,12.96336]
[1745804996929,9.23142308,1763.7,1763.6,17.96336]
[1745804997433,10.36492308,1763.7,1763.6,8.622]
[1745804998832,1.13369,1763.4,1763.3,4.615]
[1745804999031,1.13369,1763.4,1763.3,8.8293]
[1745804999938,6.04151,1763.8,1763.3,13.8293]
[1745805000235,1.13363,1763.5,1763.4,8.3721]
[1745805000625,1.13356,1763.7,1763.4,16.5799]
[1745805000832,1.13356,1763.7,1763.6,3.2078]
[1745805001140,1.13347,1763.8,1763.6,4.34131]
[1745805001442,1.13347,1763.8,1763.7,4.615]
[1745805001929,1.13342,1763.9,1763.7,14.97619]
[1745805002125,1.13342,1763.9,1763.8,7.3656]
[1745805002328,1.13342,1763.9,1763.8,44.9578]
[1745805002729,3.2078,1763.9,1763.7,8.8427]
[1745805002933,5.60133,1763.8,1763.7,4.615]
[1745805003132,14.13943,1763.8,1763.7,4.615]
[1745805003637,14.13943,1763.8,1763.5,8.7391]
[1745805003638,1.13363,1763.5,1763.4,4.615]
[1745805003830,1.13363,1763.5,1763.4,45.415]
[1745805004730,4.1396,1763.6,1763.4,45.415]
[1745805004936,4.34131,1763.7,1763.5,4.0971]
[1745805005142,4.34106,1764.1,1763.7,1.13345]
[1745805005433,10.36460308,1764.2,1763.9,4.34114]
[1745805005640,9.23142308,1764.2,1764.0,8.3536]
[1745805005941,1.13324,1764.1,1764.0,8.3536]
[1745805006238,1.13324,1764.1,1764.0,3.7386]
[1745805006633,5.46204,1764.1,1764.0,3.7386]
[1745805007036,4.3288,1764.1,1764.0,3.7386]
[1745805007342,11.8641,1764.3,1764.0,3.7386]
[1745805007534,1.1332,1764.2,1764.0,3.7386]
[1745805008542,3.2078,1764.3,1764.1,1.13322]
[1745805009144,4.34093,1764.3,1764.0,1.13326]
[1745805009346,1.13318,1764.2,1764.0,8.7735]
[1745805009544,1.13318,1764.2,1764.1,4.3433]
[1745805009845,8.66976,1764.3,1764.1,45.1433]
[1745805010143,8.66976,1764.3,1764.2,4.614]
[1745805010336,8.66976,1764.3,1764.2,8.7988]
[1745805010734,8.66976,1764.3,1764.2,4.614]
[1745805010931,1.13318,1764.2,1764.1,40.8]
[1745805011133,9.81318,1764.2,1764.1,40.8]
[1745805013437,3.2078,1764.3,1764.1,41.93322]
[1745805013644,4.34094,1764.3,1764.2,4.614]
[1745805013846,4.34094,1764.3,1764.2,8.7965]
[1745805014643,4.34094,1764.3,1764.2,4.614]
[1745805014942,5.58584,1764.3,1764.2,4.614]
[1745805015143,10.11604,1764.3,1764.2,4.614]
[1745805015446,13.32384,1764.3,1764.2,4.614]
[1745805017154,13.32384,1764.3,1763.5,1.13358]
[1745805017155,1.13331,1764.0,1763.9,4.614]
[1745805017449,1.1335,1763.7,1763.6,4.2851]
[1745805017950,1.13347,1763.8,1763.6,4.2851]
[1745805018252,1.1335,1763.7,1763.6,4.2851]
[1745805018650,1.1335,1763.7,1763.6,45.0851]
[1745805019145,1.13348,1763.8,1763.6,50.0851]
[1745805019346,1.13348,1763.8,1763.7,4.2129]
[1745805020950,1.13341,1763.9,1763.7,4.2129]
[1745805022149,1.13336,1764.0,1763.7,4.2129]
[1745805022350,1.13326,1764.1,1763.8,11.8262]
[1745805022545,1.13326,1764.1,1763.9,9.0033]
[1745805022846,1.13326,1764.1,1764.0,4.3993]
[1745805025652,1.13331,1764.0,1763.9,4.604]
[1745805025955,1.13331,1764.0,1763.9,9.1074]
[1745805026655,3.2078,1764.3,1763.9,14.1074]
[1745805026949,9.23142308,1764.4,1764.3,1.13311]
[1745805027151,10.86918254,1764.8,1764.7,1.13286]
[1745805027352,10.86918254,1764.8,1764.7,45.404]
[1745805027747,12.00197254,1764.8,1764.7,49.9074]
[1745805028057,10.86918254,1764.8,1764.7,49.9074]
[1745805028249,12.00197254,1764.8,1764.7,49.9074]
[1745805028449,10.86918254,1764.8,1764.7,49.9074]
[1745805028648,12.00197254,1764.8,1764.7,49.9074]
[1745805028948,3.2078,1765.0,1764.7,49.9074]
[1745805029155,1.13267,1765.0,1764.8,8.5555]
[1745805029352,1.13267,1765.0,1764.9,4.3055]
[1745805029856,1.13267,1765.0,1764.8,4.86187]
[1745805030060,5.24154,1765.1,1764.9,1.13273]
[1745805030259,5.24154,1765.1,1764.8,4.86185]
[1745805030464,1.13269,1765.0,1764.8,4.86185]
[1745805030761,5.24159,1765.0,1764.8,4.86185]
[1745805032053,5.24159,1765.0,1764.8,4.86187]
[1745805032360,4.3352,1764.9,1764.8,4.86187]
[1745805032957,4.3352,1764.9,1764.8,9.38227]
[1745805033560,0.00400251,1765.0,1764.8,9.38225]
[1745805033759,0.00400251,1765.0,1764.9,4.5204]
[1745805033955,0.00400251,1765.0,1764.9,5.65313]
[1745805034258,4.24720251,1765.0,1764.9,5.65313]
[1745805035653,4.24720251,1765.0,1764.9,4.5204]
[1745805035860,4.24720251,1765.0,1764.9,5.65313]
[1745805036059,5.37986251,1765.0,1764.8,4.86184]
[1745805036560,4.2432,1764.9,1764.8,9.12114]
[1745805038257,0.00400251,1765.0,1764.9,1.13273]
[1745805038561,0.00400251,1765.0,1764.9,5.62413]
[1745805040962,4.26490251,1765.0,1764.9,5.62413]
[1745805041667,5.39756251,1765.0,1764.9,4.4914]
[1745805041963,5.39756251,1765.0,1764.9,1.13273]
[1745805042166,5.39756251,1765.0,1764.8,12.35836]
[1745805042364,4.2609,1764.9,1764.8,12.35836]
[1745805042559,0.00400251,1765.0,1764.9,1.13273]
[1745805042768,0.00400251,1765.0,1764.9,5.42143]
[1745805044060,0.00400251,1765.0,1764.9,4.2887]
[1745805044261,0.00400251,1765.0,1764.9,5.42143]
[1745805044761,4.52730251,1765.0,1764.9,5.42143]
[1745805046671,5.65996251,1765.0,1764.9,1.13273]
[1745805047465,5.65996251,1765.0,1764.8,6.9369]
[1745805047666,5.49573,1764.9,1764.8,3.2078]
[1745805047862,5.49573,1764.9,1764.8,4.34059]
[1745805047863,8.8325,1764.9,1764.8,4.34059]
[1745805048167,4.363,1764.9,1764.8,4.34059]
[1745805048474,4.363,1764.9,1764.8,4.62389]
[1745805048671,5.49573,1764.9,1764.8,3.4911]
[1745805048867,1.13279,1764.8,1764.7,40.8]
[1745805049064,1.13305,1764.4,1764.3,4.601]
[1745805049971,1.13302,1764.5,1764.3,5.73411]
[1745805050168,4.4517,1764.4,1764.3,5.73411]
[1745805050569,4.4517,1764.4,1764.3,46.53411]
[1745805051464,5.58475,1764.4,1764.3,45.401]
[1745805051969,4.4517,1764.4,1764.3,46.53411]
[1745805052661,8.7372,1764.7,1764.6,1.13292]
[1745805052864,8.7372,1764.7,1764.4,3.2078]
[1745805053066,9.87011,1764.7,1764.5,1.13297]
[1745805053973,4.1801,1764.6,1764.5,1.13297]
[1745805055173,4.1801,1764.6,1764.5,5.47677]
[1745805055567,4.1801,1764.6,1764.5,1.13297]
[1745805058176,4.1801,1764.6,1764.4,5.4979]
[1745805058374,4.1801,1764.6,1764.3,45.401]
[1745805058568,5.31305,1764.6,1764.3,45.401]
[1745805058768,5.31305,1764.6,1764.4,1.13301]
[1745805059073,4.134,1764.5,1764.4,1.13301]
[1745805059785,5.26698,1764.5,1764.3,46.53407]
[1745805059969,4.2104,1764.4,1764.3,46.53407]
[1745805060170,8.3444,1764.4,1764.3,46.53407]
[1745805060677,9.47745,1764.4,1764.3,45.401]
[1745805060878,8.3444,1764.4,1764.3,45.401]
[1745805061067,11.945,1764.7,1764.6,1.13292]
[1745805061477,1.13294,1764.6,1764.4,9.78639]
[1745805061671,9.87008,1764.7,1764.5,1.13294]
[1745805062373,4.5164,1764.6,1764.5,1.13294]
[1745805062769,5.64932,1764.6,1764.4,1.133]
[1745805063280,8.7224,1764.5,1764.4,1.133]
[1745805063476,8.7224,1764.5,1764.3,45.401]
[1745805063477,9.85538,1764.5,1764.3,46.53406]
[1745805063679,4.5164,1764.4,1764.3,46.53406]
[1745805064072,5.64945,1764.4,1764.3,45.401]
[1745805064477,5.64945,1764.4,1764.3,40.8]
[1745805064778,1.1335,1763.7,1763.6,3.2078]
[1745805065077,1.13359,1763.6,1763.4,4.592]
[1745805065380,5.60559,1763.6,1763.4,4.592]
[1745805065576,4.472,1763.6,1763.4,7.7998]
[1745805065775,4.472,1763.6,1763.5,40.8]
[1745805066879,4.472,1763.6,1763.5,41.93363]
[1745805067072,7.7186,1763.9,1763.5,40.8]
[1745805067379,5.64418,1763.9,1763.6,4.34132]
[1745805067680,1.13346,1763.8,1763.6,1.13356]
[1745805067875,5.64421,1763.9,1763.7,1.1335]
[1745805068179,4.5108,1763.9,1763.8,1.13343]
[1745805068369,8.8667,1763.9,1763.8,5.72643]
[1745805068566,8.8667,1763.9,1763.8,4.593]
[1745805068780,8.8667,1763.9,1763.8,5.72643]
[1745805068980,8.8667,1763.9,1763.8,4.593]
[1745805069280,1.13307,1764.4,1764.2,1.13317]
[1745805069476,4.3559,1764.4,1764.3,1.13311]
[1745805069977,4.3559,1764.4,1764.3,5.28991]
[1745805070178,4.3559,1764.4,1764.3,46.08991]
[1745805070575,4.3559,1764.4,1764.3,50.54611]
[1745805071085,4.3559,1764.4,1764.3,49.413]
[1745805071572,4.3559,1764.4,1764.3,50.54611]
[1745805073782,4.3559,1764.4,1764.3,49.413]
[1745805074478,5.48895,1764.4,1764.3,40.8]
[1745805076176,9.29095,1764.4,1764.3,40.8]
[1745805076981,12.49875,1764.4,1764.3,40.8]
[1745805079682,9.29095,1764.4,1764.3,40.8]
[1745805079883,1.13331,1764.0,1763.9,4.593]
[1745805080181,1.13355,1763.7,1763.5,7.8008]
[1745805080580,5.26246,1763.6,1763.5,12.2243]
[1745805080782,5.26246,1763.6,1763.5,7.8008]
[1745805080986,5.26246,1763.6,1763.5,45.393]
[1745805081280,9.06446,1763.6,1763.5,45.393]
[1745805082283,9.06446,1763.6,1763.5,40.8]
[1745805083682,12.27226,1763.6,1763.5,40.8]
[1745805085187,17.27226,1763.6,1763.5,40.8]
[1745805085384,9.06446,1763.6,1763.5,40.8]
[1745805085589,3.802,1763.6,1763.5,45.14143]
[1745805085795,3.802,1763.6,1763.5,50.14143]
[1745805086282,8.86575,1763.8,1763.6,1.13355]
[1745805086479,8.86575,1763.8,1763.7,4.584]
[1745805086676,1.13356,1763.6,1763.5,44.0078]
[1745805087086,4.93556,1763.6,1763.5,44.0078]
[1745805087883,3.802,1763.6,1763.5,44.0078]
[1745805088187,5.65794,1763.8,1763.5,54.62818]
[1745805088376,4.5245,1763.8,1763.6,1.13354]
[1745805088581,3.2078,1764.1,1763.7,7.6946]
[1745805088781,3.2078,1764.1,1763.8,8.8719]
[1745805088981,3.2078,1764.1,1763.9,10.08865]
[1745805089281,7.0098,1764.1,1763.9,8.9553]
[1745805089581,12.57017,1764.1,1763.9,10.08867]
[1745805090187,3.802,1764.1,1764.0,1.13331]
[1745805090377,3.802,1764.1,1764.0,8.76651]
[1745805090793,3.802,1764.1,1764.0,13.76651]
[1745805091290,8.279,1764.2,1764.1,1.13324]
[1745805091590,8.279,1764.2,1764.1,41.93324]
[1745805091790,8.279,1764.2,1764.1,46.93324]
[1745805092193,1.13288,1764.7,1764.5,1.13295]
[1745805092384,5.54208,1764.7,1764.5,5.71697]
[1745805092886,5.54208,1764.7,1764.5,10.01537]
[1745805093193,9.34408,1764.7,1764.5,10.01537]
[1745805093591,9.34408,1764.7,1764.5,8.8824]
[1745805093889,9.34408,1764.7,1764.5,10.01535]
[1745805094195,1.13292,1764.6,1764.5,8.8824]
[1745805094385,5.54212,1764.6,1764.5,8.8824]
[1745805094584,4.4092,1764.6,1764.5,10.01538]
[1745805094891,4.4092,1764.6,1764.5,8.8824]
[1745805095087,8.2112,1764.6,1764.5,10.01538]
[1745805095294,8.2112,1764.6,1764.5,8.8824]
[1745805095488,9.34412,1764.6,1764.5,4.584]
[1745805095988,12.55192,1764.6,1764.5,4.584]
[1745805096180,8.2112,1764.6,1764.5,4.584]
[1745805097294,9.34412,1764.6,1764.5,4.584]
[1745805098687,16.419,1764.6,1764.2,4.583]
[1745805098889,1.13311,1764.3,1764.2,4.583]
[1745805099090,4.93511,1764.3,1764.2,4.583]
[1745805099300,9.27011,1764.3,1764.2,4.583]
[1745805099998,8.137,1764.3,1764.2,4.583]
[1745805100296,8.137,1764.3,1764.2,8.7387]
[1745805100497,9.27011,1764.3,1764.2,8.7387]
[1745805101196,8.137,1764.3,1764.2,8.7387]
[1745805102695,9.27011,1764.3,1764.2,8.7387]
[1745805103094,9.27011,1764.3,1764.2,4.583]
[1745805103989,1.13318,1764.2,1764.1,40.8]
[1745805104193,1.13318,1764.2,1763.6,9.0909]
[1745805104194,1.1335,1763.7,1763.6,9.0909]
[1745805104392,1.1335,1763.7,1763.6,4.583]
[1745805104600,5.0,1763.7,1763.2,13.667]
[1745805104793,4.2633,1763.6,1763.2,9.0909]
[1745805104993,1.13376,1763.3,1763.2,9.0909]
[1745805105191,3.802,1763.3,1763.2,49.8909]
[1745805105389,3.802,1763.3,1763.2,51.02472]
[1745805105599,8.0653,1763.3,1763.2,55.31432]
[1745805106895,8.0653,1763.3,1763.2,54.1805]
[1745805107603,9.19906,1763.3,1763.2,54.1805]
[1745805107903,9.19906,1763.3,1763.2,45.383]
[1745805108507,12.40686,1763.3,1763.2,45.383]
[1745805109004,12.40686,1763.3,1763.2,40.8]
[1745805109202,1.13395,1763.0,1762.9,4.584]
[1745805109407,1.13409,1762.8,1762.5,14.07893]
[1745805109707,1.13406,1762.9,1762.6,1.1342]
[1745805110005,1.13406,1762.9,1762.7,4.2545]
[1745805110303,4.93606,1762.9,1762.8,40.8]
[1745805113007,2.8352,1762.8,1762.2,3.2078]
[1745805113211,1.1343,1762.5,1762.3,4.574]
[1745805113504,4.4776,1762.4,1762.3,4.574]
[1745805114007,5.61193,1762.4,1762.3,45.374]
[1745805115106,9.41393,1762.4,1762.3,45.374]
[1745805116407,8.2796,1762.4,1762.3,45.374]
[1745805116705,8.2796,1762.4,1762.3,46.5084]
[1745805116901,8.2796,1762.4,1762.3,50.6475]
[1745805117106,4.4776,1762.4,1762.3,49.5131]
[1745805117304,5.61193,1762.4,1762.3,45.374]
[1745805117508,4.4776,1762.4,1762.3,45.374]
[1745805117910,5.61193,1762.4,1762.3,45.374]
[1745805118102,9.41393,1762.4,1762.3,45.374]
[1745805118904,3.802,1762.4,1762.3,45.374]
[1745805119209,4.34195,1762.7,1762.5,1.13427]
[1745805119509,4.34195,1762.7,1762.6,1.13421]
[1745805119510,3.2078,1762.7,1762.6,1.13421]
[1745805120110,8.2078,1762.7,1762.3,45.374]
[1745805120306,4.3796,1762.6,1762.4,4.34211]
[1745805120505,3.2078,1762.7,1762.4,7.7332]
[1745805120809,3.2078,1762.7,1762.4,12.0865]
[1745805121011,5.51364,1762.9,1762.7,1.13411]
[1745805121210,5.51364,1762.9,1762.8,4.5254]
[1745805121410,4.3796,1762.9,1762.8,4.5254]
[1745805121611,5.51361,1762.9,1762.8,4.5254]
[1745805122105,8.1816,1762.9,1762.8,4.5254]
[1745805123197,3.802,1762.9,1762.8,13.86728]
[1745805123407,3.802,1762.9,1762.8,18.24818]
[1745805123617,5.888,1763.4,1762.8,18.24818]
[1745805123618,4.4342,1763.5,1763.2,1.13376]
[1745805123909,4.1465,1763.5,1763.2,5.70976]
[1745805124109,1.13372,1763.4,1763.3,44.9701]
[1745805124710,1.13372,1763.4,1763.3,40.8]
[1745805125212,9.16542,1763.4,1763.3,40.8]
[1745805125411,8.0317,1763.4,1763.3,40.8]
[1745805125808,12.4542,1763.4,1763.3,40.8]
[1745805126513,13.58789,1763.4,1763.3,40.8]
[1745805127514,12.4542,1763.4,1763.3,41.93376]
[1745805127714,12.4542,1763.4,1763.3,40.8]
[1745805127913,13.58789,1763.4,1763.3,40.8]
[1745805129810,12.4542,1763.4,1763.3,41.93376]
[1745805130112,4.34138,1763.6,1763.4,1.13368]
[1745805130318,4.3318,1763.7,1763.3,16.0502]
[1745805130618,4.3318,1763.7,1763.6,1.13356]
[1745805131213,8.1338,1763.7,1763.6,5.26136]
[1745805132117,9.2673,1763.7,1763.6,4.1278]
[1745805132618,9.2673,1763.7,1763.5,41.93358]
[1745805132619,8.1338,1763.7,1763.5,40.8]
[1745805132819,9.26734,1763.7,1763.5,40.8]
[1745805133005,9.26734,1763.7,1763.5,41.93363]
[1745805133709,1.13356,1763.6,1763.5,40.8]
[1745805133905,5.46256,1763.6,1763.5,40.8]
[1745805134213,9.26456,1763.6,1763.5,40.8]
[1745805135023,8.131,1763.6,1763.5,40.8]
[1745805135218,4.329,1763.6,1763.5,40.8]
[1745805135717,4.329,1763.6,1763.5,45.0662]
[1745805136617,8.71588,1763.8,1763.5,45.0662]
[1745805136819,8.524,1763.8,1763.5,45.0662]
[1745805137319,12.326,1763.8,1763.7,1.1335]
[1745805137513,7.9514,1763.8,1763.7,1.1335]
[1745805137714,9.08483,1763.8,1763.6,5.39973]
[1745805137919,4.4173,1763.7,1763.6,5.39973]
[1745805138124,8.2193,1763.7,1763.6,5.39973]
[1745805138320,8.2193,1763.7,1763.6,9.97473]
[1745805139221,4.4173,1763.7,1763.6,9.97473]
[1745805139423,1.13343,1763.8,1763.6,9.97471]
[1745805139619,1.13343,1763.8,1763.7,4.4611]
[1745805139821,5.5508,1763.7,1763.6,4.575]
[1745805140021,4.4173,1763.7,1763.6,5.70856]
[1745805140218,4.4173,1763.7,1763.6,10.16966]
[1745805140822,3.2078,1763.9,1763.6,10.16966]
[1745805140823,4.3412,1763.9,1763.6,9.0361]
[1745805141019,4.3412,1763.9,1763.7,5.36917]
[1745805141020,4.1736,1763.8,1763.7,5.36917]
[1745805141211,3.2078,1763.9,1763.7,5.36917]
[1745805141212,3.802,1763.9,1763.7,7.4435]
[1745805141521,3.2078,1764.4,1764.2,1.13318]
[1745805141712,16.2269,1764.6,1764.1,4.575]
[1745805141917,4.1736,1764.5,1764.3,1.13311]
[1745805142117,9.10858,1764.5,1764.4,4.2357]
[1745805142320,9.10858,1764.5,1764.4,45.0357]
[1745805142721,7.9756,1764.5,1764.4,45.0357]
[1745805143228,9.10858,1764.5,1764.4,40.8]
[1745805144128,4.93498,1764.5,1764.4,40.8]
[1745805144429,3.802,1764.5,1764.4,45.14085]
[1745805145319,5.44386,1764.7,1764.4,45.14085]
[1745805145716,1.13298,1764.5,1764.4,40.8]
[1745805146232,4.93498,1764.5,1764.4,40.8]
[1745805146617,9.93498,1764.5,1764.4,40.8]
[1745805147624,14.07278,1764.5,1764.4,40.8]
[1745805147825,9.07278,1764.5,1764.4,40.8]
[1745805148626,4.93498,1764.5,1764.4,40.8]
[1745805150825,3.802,1764.5,1764.4,40.8]
[1745805151430,4.93498,1764.5,1764.4,40.8]
[1745805153032,3.802,1764.5,1764.4,41.93305]
[1745805153832,3.802,1764.5,1764.4,46.27885]
[1745805154021,3.802,1764.5,1764.4,50.54845]
[1745805154223,4.2335,1764.6,1764.4,49.4154]
[1745805154423,4.2335,1764.6,1764.5,4.3458]
[1745805154925,5.36642,1764.6,1764.4,45.0696]